fUST/lending_fUST_20260611
["ID","MTS","AMOUNT","RATE_DAILY","PERIOD"]
[424759353,1781131840000,-643.66,0.00022192,2]
[424759358,1781131840000,-500.0,0.00022465,2]
[424759252,1781131840000,-3436.31752152,0.000205,2]
[424759337,1781131840000,-499.999999,0.00022191,2]
[424759302,1781131840000,-483.375958,0.00021876,2]
[424759223,1781131840000,-643.66,0.00019726,2]
[424759298,1781131840000,-3436.31752152,0.000216,2]
[424759306,1781131840000,-500.0,0.00021917,2]
[424759259,1781131840000,-864.0,0.00020599,2]
[424759245,1781131840000,-3436.31752152,0.000203,2]
[424759247,1781131840000,-321.6188891,0.00020364,2]
[424759249,1781131840000,-200.32160376,0.000205,2]
[424759262,1781131840000,-3436.31752152,0.000207,2]
[424759266,1781131840000,-3436.31752152,0.000209,2]
[424759269,1781131840000,-150.0,0.00021,2]
[424759267,1781131840000,-300.0,0.00020933,4]
[424759273,1781131840000,-425.26944512,0.00021037,2]
[424759271,1781131840000,-35635.40426759,0.00021037,8]
[424759283,1781131840000,-151.13,0.00021271,2]
[424759264,1781131840000,-643.66,0.00020822,2]
[424759255,1781131840000,-2469.31573741,0.00020538,2]
[424759279,1781131840000,-151.15,0.00021271,2]
[424759304,1781131840000,-500.0,0.00021917,2]
[424759300,1781131840000,-643.66,0.00021644,2]
[424759291,1781131840000,-643.66,0.0002137,2]
[424759307,1781131840000,-500.0,0.00021917,2]
[424759292,1781131840000,-1416.0,0.0002144,2]
[424759296,1781131840000,-3645.0,0.0002144,2]
[424759275,1781131840000,-643.66,0.00021096,2]
[424759289,1781131840000,-3436.31752152,0.000213,2]
[424759287,1781131840000,-151.13,0.00021271,2]
[424759285,1781131840000,-151.13,0.00021271,2]
[424759277,1781131840000,-3436.31752152,0.000211,2]
[424759281,1781131840000,-151.13,0.00021271,2]
[424759294,1781131840000,-1838.0,0.0002144,2]
[424759445,1781131841000,-244.0,0.00024925,10]
[424759444,1781131841000,-1000.0,0.00024925,10]
[424759438,1781131841000,-3619.0,0.0002444,2]
[424759440,1781131841000,-1114.16,0.00024657,2]
[424759434,1781131841000,-1416.0,0.0002444,2]
[424759436,1781131841000,-1838.0,0.0002444,2]
[424759420,1781131841000,-1114.16,0.00023835,2]
[424759431,1781131841000,-38000.0,0.00024383,7]
[424759422,1781131841000,-151.68,0.00024034,10]
[424759427,1781131841000,-151.0,0.0002411,6]
[424759418,1781131841000,-160.24968294,0.00023835,2]
[424759453,1781131841000,-417.15472785,0.00025,10]
[424759432,1781131841000,-1114.16,0.00024383,2]
[424759451,1781131841000,-417.15472785,0.00025,10]
[424759464,1781131841000,-5707.9656,0.00025444,2]
[424759442,1781131841000,-151.77,0.00024728,10]
[424759455,1781131841000,-417.15472785,0.00025,10]
[424759456,1781131841000,-153.907958,0.00025,2]
[424759458,1781131841000,-1114.16,0.00025205,2]
[424759460,1781131841000,-452.46875365,0.00025218,2]
[424759429,1781131841000,-38000.0,0.00024374,7]
[424759462,1781131841000,-274.663811,0.00025342,2]
[424759466,1781131841000,-1114.16,0.00025479,2]
[424759476,1781131841000,-1114.16,0.00026301,2]
[424759474,1781131841000,-1114.16,0.00026027,2]
[424759468,1781131841000,-151.91,0.00025577,10]
[424759478,1781131841000,-1114.16,0.00026575,2]
[424759472,1781131841000,-1114.16,0.00025753,2]
[424759449,1781131841000,-1114.16,0.00024931,2]
[424759425,1781131841000,-1114.16,0.00024109,2]
[424759406,1781131841000,-151.0,0.00023387,3]
[424759416,1781131841000,-222.266389,0.00023599,14]
[424759375,1781131841000,-500.0,0.00022739,2]
[424759366,1781131841000,-1114.16,0.00022465,2]
[424759374,1781131841000,-1000.0,0.00022659,10]
[424759364,1781131841000,-539.33903405,0.00022465,2]
[424759360,1781131841000,-500.0,0.00022465,2]
[424759370,1781131841000,-370.443982,0.00022475,14]
[424759368,1781131841000,-643.74,0.00022466,2]
[424759372,1781131841000,-367.56444469,0.00022513,2]
[424759362,1781131841000,-500.0,0.00022465,2]
[424759379,1781131841000,-500.0,0.00022739,2]
[424759381,1781131841000,-1114.16,0.00022739,2]
[424759377,1781131841000,-500.0,0.00022739,2]
[424759383,1781131841000,-2014.03018265,0.00022933,2]
[424759386,1781131841000,-500.0,0.00023013,2]
[424759391,1781131841000,-500.0,0.00023013,2]
[424759389,1781131841000,-500.0,0.00023013,2]
[424759393,1781131841000,-1114.16,0.00023013,2]
[424759397,1781131841000,-500.0,0.00023287,2]
[424759385,1781131841000,-2743.68415268,0.00022933,2]
[424759395,1781131841000,-162.04,0.00023277,10]
[424759403,1781131841000,-1114.16,0.00023287,2]
[424759399,1781131841000,-359.67264454,0.00023287,2]
[424759404,1781131841000,-151.0,0.00023387,3]
[424759401,1781131841000,-500.0,0.00023287,2]
[424759470,1781131841000,-152.17,0.00025652,7]
[424759408,1781131841000,-151.59,0.00023526,10]
[424759410,1781131841000,-500.0,0.00023561,2]
[424759412,1781131841000,-385.04947165,0.00023561,2]
[424759414,1781131841000,-1114.16,0.00023561,2]
[424759423,1781131841000,-417.15472785,0.00024109,7]
[424759479,1781131841000,-1114.16,0.00026849,2]
[424759447,1781131841000,-190.0,0.00024931,2]
[424759492,1781131841000,-151.0,0.00027123,2]
[424759541,1781131841000,-517.0,0.00027123,2]
[424759555,1781131841000,-500.0,0.00027136,120]
[424759535,1781131841000,-517.0,0.00027123,2]
[424759537,1781131841000,-517.0,0.00027123,2]
[424759556,1781131841000,-1114.16,0.00027397,2]
[424759558,1781131841000,-500.0,0.0002741,120]
[424759560,1781131841000,-1000.0,0.00027417,30]
[424759562,1781131841000,-270.0,0.00027417,30]
[424759576,1781131841000,-1114.16,0.00027945,2]
[424759568,1781131841000,-500.0,0.00027684,120]
[424759572,1781131841000,-500.0,0.00027684,120]
[424759564,1781131841000,-533.806,0.0002744,2]
[424759570,1781131841000,-500.0,0.00027684,120]
[424759574,1781131841000,-780.974,0.00027684,120]
[424759566,1781131841000,-1114.16,0.00027671,2]
[424759578,1781131841000,-500.0,0.00027958,120]
[424759580,1781131841000,-500.0,0.00027958,120]
[424759582,1781131841000,-500.0,0.00027958,120]
[424759584,1781131841000,-500.0,0.00027958,120]
[424759586,1781131841000,-500.0,0.00027958,120]
[424759597,1781131841000,-216.98,0.00032877,120]
[424759588,1781131841000,-1114.28,0.00028219,2]
[424759490,1781131841000,-160.82247475,0.00027123,2]
[424759593,1781131841000,-500.0,0.00030137,5]
[424759599,1781131841000,-210.07180536,0.00032877,2]
[424759590,1781131841000,-274.663811,0.00028767,60]
[424759595,1781131841000,-500.0,0.00031723,5]
[424759601,1781131841000,-2410.34852088,0.000332,117]
[424759603,1781131841000,-2410.34852088,0.000332,117]
[424759539,1781131841000,-517.0,0.00027123,2]
[424759553,1781131841000,-1114.16,0.00027123,2]
[424759591,1781131841000,-300.0,0.0003,14]
[424759533,1781131841000,-517.0,0.00027123,2]
[424759549,1781131841000,-517.0,0.00027123,2]
[424759494,1781131841000,-517.0,0.00027123,2]
[424759498,1781131841000,-517.0,0.00027123,2]
[424759487,1781131841000,-151.5,0.00027123,2]
[424759489,1781131841000,-151.5,0.00027123,2]
[424759485,1781131841000,-151.5,0.00027123,2]
[424759500,1781131841000,-517.0,0.00027123,2]
[424759496,1781131841000,-517.0,0.00027123,2]
[424759483,1781131841000,-151.5,0.00027123,2]
[424759502,1781131841000,-151.5,0.00027123,2]
[424759504,1781131841000,-517.0,0.00027123,2]
[424759508,1781131841000,-517.0,0.00027123,2]
[424759510,1781131841000,-151.5,0.00027123,2]
[424759515,1781131841000,-517.0,0.00027123,2]
[424759512,1781131841000,-517.0,0.00027123,2]
[424759481,1781131841000,-151.5,0.00027123,2]
[424759506,1781131841000,-151.5,0.00027123,2]
[424759513,1781131841000,-151.5,0.00027123,2]
[424759531,1781131841000,-517.0,0.00027123,2]
[424759543,1781131841000,-517.0,0.00027123,2]
[424759545,1781131841000,-517.0,0.00027123,2]
[424759547,1781131841000,-517.0,0.00027123,2]
[424759529,1781131841000,-517.0,0.00027123,2]
[424759551,1781131841000,-533.50156168,0.00027123,2]
[424759521,1781131841000,-241.93246848,0.00027123,2]
[424759523,1781131841000,-517.0,0.00027123,2]
[424759519,1781131841000,-517.0,0.00027123,2]
[424759517,1781131841000,-151.5,0.00027123,2]
[424759525,1781131841000,-517.0,0.00027123,2]
[424759527,1781131841000,-517.0,0.00027123,2]
[424759679,1781131842000,-151.0,0.00036438,7]
[424759670,1781131842000,-151.0,0.00036438,3]
[424759672,1781131842000,-151.0,0.00036438,3]
[424759673,1781131842000,-192.077,0.00036438,3]
[424759675,1781131842000,-151.0,0.00036438,5]
[424759677,1781131842000,-279.051,0.00036438,5]
[424759662,1781131842000,-151.0,0.00036438,2]
[424759666,1781131842000,-169.127,0.00036438,2]
[424759668,1781131842000,-151.0,0.00036438,3]
[424759664,1781131842000,-151.0,0.00036438,2]
[424759681,1781131842000,-300.0,0.00036475,41]
[424759700,1781131842000,-300.0,0.00036921,42]
[424759683,1781131842000,-300.0,0.00036567,41]
[424759691,1781131842000,-1470.0,0.000368,3]
[424759689,1781131842000,-300.0,0.00036761,42]
[424759692,1781131842000,-300.0,0.00036806,42]
[424759687,1781131842000,-300.0,0.00036708,41]
[424759696,1781131842000,-300.0,0.00036873,42]
[424759698,1781131842000,-300.0,0.00036899,42]
[424759694,1781131842000,-300.0,0.00036843,42]
[424759656,1781131842000,-151.0,0.00036438,2]
[424759702,1781131842000,-300.0,0.00036939,42]
[424759685,1781131842000,-300.0,0.00036644,41]
[424759660,1781131842000,-151.0,0.00036438,2]
[424759622,1781131842000,-500.0,0.0003515,5]
[424759648,1781131842000,-500.0,0.0003624,2]
[424759719,1781131842000,-500.0,0.00036986,30]
[424759607,1781131842000,-2410.34852088,0.000332,117]
[424759611,1781131842000,-500.0,0.00033393,5]
[424759609,1781131842000,-2410.34852088,0.00033367,117]
[424759613,1781131842000,-355.0,0.00034246,2]
[424759615,1781131842000,-355.0,0.0003452,3]
[424759628,1781131842000,-151.0,0.00036099,30]
[424759617,1781131842000,-355.0,0.00034794,4]
[424759620,1781131842000,-355.0,0.00035068,5]
[424759618,1781131842000,-300.0,0.00035,14]
[424759626,1781131842000,-360.30982645,0.00035342,6]
[424759630,1781131842000,-179.76952462,0.00036099,30]
[424759624,1781131842000,-294.66319117,0.00035153,2]
[424759632,1781131842000,-500.0,0.00036099,30]
[424759634,1781131842000,-500.0,0.0003624,2]
[424759636,1781131842000,-500.0,0.0003624,2]
[424759640,1781131842000,-500.0,0.0003624,2]
[424759638,1781131842000,-500.0,0.0003624,2]
[424759642,1781131842000,-500.0,0.0003624,2]
[424759652,1781131842000,-246.673,0.00036438,2]
[424759654,1781131842000,-151.0,0.00036438,2]
[424759650,1781131842000,-771.39501617,0.0003624,2]
[424759646,1781131842000,-500.0,0.0003624,2]
[424759658,1781131842000,-151.0,0.00036438,2]
[424759716,1781131842000,-500.0,0.00036986,30]
[424759644,1781131842000,-500.0,0.0003624,2]
[424759723,1781131842000,-300.0,0.00036992,43]
[424759751,1781131842000,-160.0,0.00037979,5]
[424759759,1781131842000,-5514.31215015,0.00038,120]
[424759769,1781131842000,-500.0,0.00038,120]
[424759806,1781131842000,-145.90009317,0.000389,120]
[424759771,1781131842000,-151.0,0.00038,7]
[424759773,1781131842000,-417.15472785,0.00038,120]
[424759761,1781131842000,-31798.16234882,0.00038,120]
[424759775,1781131842000,-151.0,0.00038,7]
[424759767,1781131842000,-3179.14848271,0.00038,120]
[424759776,1781131842000,-151.0,0.00038,7]
[424759765,1781131842000,-163.80025392,0.00038,2]
[424759778,1781131842000,-233.0867,0.00038,7]
[424759780,1781131842000,-1555.8120296,0.00038024,2]
[424759782,1781131842000,-417.15472785,0.000381,120]
[424759792,1781131842000,-163.0,0.000384,120]
[424759790,1781131842000,-2000.0,0.000384,120]
[424759788,1781131842000,-452.762625,0.00038356,120]
[424759784,1781131842000,-200.0,0.00038356,2]
[424759796,1781131842000,-500.0,0.0003885,5]
[424759794,1781131842000,-400.0,0.000388,120]
[424759799,1781131842000,-21294.05175131,0.000389,120]
[424759786,1781131842000,-348.7751375,0.00038356,2]
[424759721,1781131842000,-544.88357836,0.00036986,30]
[424759752,1781131842000,-133445.55211469,0.00038,120]
[424759746,1781131842000,-173.1708,0.0003735,120]
[424759763,1781131842000,-100000.0,0.00038,120]
[424759750,1781131842000,-2000.0,0.000379,120]
[424759704,1781131842000,-151.0,0.00036939,7]
[424759757,1781131842000,-169616.23455026,0.00038,120]
[424759706,1781131842000,-300.0,0.00036953,42]
[424759714,1781131842000,-500.0,0.00036986,30]
[424759712,1781131842000,-300.0,0.00036985,43]
[424759708,1781131842000,-300.0,0.00036966,42]
[424759710,1781131842000,-300.0,0.00036976,43]
[424759727,1781131842000,-54627.06605626,0.00037,120]
[424759729,1781131842000,-2055.96425037,0.00037,2]
[424759740,1781131842000,-276.9564383,0.00037,7]
[424759741,1781131842000,-500.0,0.00037,5]
[424759743,1781131842000,-300.0,0.00037007,43]
[424759725,1781131842000,-300.0,0.00036998,43]
[424759739,1781131842000,-151.0,0.00037,7]
[424759742,1781131842000,-300.0,0.00037003,43]
[424759744,1781131842000,-300.0,0.00037011,43]
[424759735,1781131842000,-417.15472785,0.00037,120]
[424759738,1781131842000,-151.0,0.00037,7]
[424759731,1781131842000,-1000.0,0.00037,120]
[424759737,1781131842000,-156.37228,0.00037,7]
[424759733,1781131842000,-154.404732,0.00037,7]
[424759747,1781131842000,-2000.0,0.000374,120]
[424759749,1781131842000,-1027.42461807,0.000378,2]
[424759748,1781131842000,-259.020412,0.000374,7]
[424759745,1781131842000,-396.25,0.00037014,43]
[424761617,1781131887000,2000.0,0.00021037,120]
[424761618,1781132028000,165.1983671,0.00021037,120]
[424761619,1781132141000,164.71702131,0.00021037,120]
[424761620,1781132245000,2000.0,7.6e-05,2]
[424761631,1781133011000,153.0,0.00021093,120]
[424761674,1781133032000,-246.80059304,0.0001488,2]
[424761696,1781133032000,-314.64509812,0.0001559,2]
[424761695,1781133032000,-234.50572923,0.0001559,2]
[424761681,1781133032000,-150.03085532,0.0001488,2]
[424761682,1781133032000,-156.16180704,0.0001488,2]
[424761679,1781133032000,-150.80435492,0.0001488,2]
[424761677,1781133032000,-156.09617289,0.0001488,2]
[424761672,1781133032000,-206.48683354,0.0001488,2]
[424761653,1781133032000,-434.57727201,0.00014632,2]
[424761667,1781133032000,-179.85019554,0.0001488,2]
[424761670,1781133032000,-157.0639617,0.0001488,2]
[424761665,1781133032000,-166.66666668,0.0001478,2]
[424761663,1781133032000,-4311.231625,0.00014632,2]
[424761668,1781133032000,-157.32254906,0.0001488,2]
[424761661,1781133032000,-254.19110299,0.00014632,2]
[424761684,1781133032000,-176.20285956,0.0001488,2]
[424761675,1781133032000,-199.8115267,0.0001488,2]
[424761686,1781133032000,-157.41094789,0.00014932,2]
[424761690,1781133032000,-166.66666666,0.00015021,2]
[424761705,1781133032000,-352.40571911,0.0001559,2]
[424761689,1781133032000,-1000.0,0.00014978,2]
[424761707,1781133032000,-2738.95162892,0.000156,2]
[424761708,1781133032000,-341.85147816,0.000156,2]
[424761704,1781133032000,-312.32361408,0.0001559,2]
[424761701,1781133032000,-312.19234578,0.0001559,2]
[424761703,1781133032000,-300.06171065,0.0001559,2]
[424761699,1781133032000,-493.60118608,0.0001559,2]
[424761700,1781133032000,-399.6230534,0.0001559,2]
[424761702,1781133032000,-301.60870983,0.0001559,2]
[424761698,1781133032000,-412.97366707,0.0001559,2]
[424761694,1781133032000,-359.70039107,0.0001559,2]
[424761693,1781133032000,-11290.92694204,0.00015363,2]
[424761692,1781133032000,-166.66666666,0.00015262,2]
[424761688,1781133032000,-326.098103,0.00014978,2]
[424761687,1781133032000,-154.95698092,0.00014932,2]
[424761691,1781133032000,-206.817708,0.00015068,2]
[424761697,1781133032000,-314.12792341,0.0001559,2]
[424761706,1781133032000,-2738.95162893,0.000156,2]
[424761745,1781133039000,-719.40078215,0.00016379,2]
[424761753,1781133039000,-273.22201632,0.00016379,2]
[424761749,1781133039000,-285.23390466,0.00016379,2]
[424761746,1781133039000,-376.30880689,0.00016379,2]
[424761783,1781133039000,-704.81143823,0.00016379,2]
[424761748,1781133039000,-349.13621497,0.00016379,2]
[424761747,1781133039000,-158.62387838,0.00016379,2]
[424761750,1781133039000,-189.26290303,0.00016379,2]
[424761752,1781133039000,-628.25584681,0.00016379,2]
[424761751,1781133039000,-629.29019624,0.00016379,2]
[424761755,1781133039000,-825.94733415,0.00016379,2]
[424761762,1781133039000,-799.24610679,0.00016379,2]
[424761756,1781133039000,-503.96724886,0.00016379,2]
[424761769,1781133039000,-309.23236417,0.00016379,2]
[424761771,1781133039000,-624.38469157,0.00016379,2]
[424761764,1781133039000,-570.04754663,0.00016379,2]
[424761765,1781133039000,-350.07114594,0.00016379,2]
[424761758,1781133039000,-341.52380668,0.00016379,2]
[424761760,1781133039000,-987.20237217,0.00016379,2]
[424761743,1781133039000,-464.87094276,0.00016119,2]
[424761775,1781133039000,-603.21741966,0.00016379,2]
[424761773,1781133039000,-703.5171877,0.00016379,2]
[424761777,1781133039000,-173.73069484,0.00016379,2]
[424761781,1781133039000,-624.64722816,0.00016379,2]
[424761767,1781133039000,-446.3340773,0.00016379,2]
[424761744,1781133039000,-161.01217456,0.00016379,2]
[424761735,1781133039000,-253.94676165,0.00016064,2]
[424761742,1781133039000,-472.23284368,0.00016119,2]
[424761716,1781133039000,-500.0,0.00015643,2]
[424761715,1781133039000,-2397.10015076,0.000156,2]
[424761718,1781133039000,-309.91396184,0.00015644,2]
[424761717,1781133039000,-314.82189579,0.00015644,2]
[424761720,1781133039000,-600.0,0.00015894,2]
[424761719,1781133039000,-859.08829691,0.000158,2]
[424761721,1781133039000,-156.49650075,0.00015993,2]
[424761722,1781133039000,-219.14504969,0.00016,2]
[424761723,1781133039000,-500.0,0.00016064,2]
[424761726,1781133039000,-471.96764718,0.00016064,2]
[424761727,1781133039000,-471.19188511,0.00016064,2]
[424761724,1781133039000,-539.55058661,0.00016064,2]
[424761725,1781133039000,-469.01145846,0.00016064,2]
[424761729,1781133039000,-251.98362443,0.00016064,2]
[424761728,1781133039000,-619.46050061,0.00016064,2]
[424761730,1781133039000,-170.76190334,0.00016064,2]
[424761732,1781133039000,-599.4345801,0.00016064,2]
[424761731,1781133039000,-740.40177913,0.00016064,2]
[424761733,1781133039000,-285.02377332,0.00016064,2]
[424761738,1781133039000,-450.09256597,0.00016064,2]
[424761734,1781133039000,-154.61618208,0.00016064,2]
[424761736,1781133039000,-468.28851867,0.00016064,2]
[424761737,1781133039000,-452.41306475,0.00016064,2]
[424761739,1781133039000,-468.48542112,0.00016064,2]
[424761741,1781133039000,-177.11692,0.00016115,2]
[424761740,1781133039000,-528.60857867,0.00016064,2]
[424761779,1781133039000,-600.12342129,0.00016379,2]
[424761835,1781133039000,-2680.18413462,0.00016823,2]
[424761794,1781133039000,-317.83543937,0.00016435,2]
[424761848,1781133039000,-936.57703735,0.00017168,2]
[424761852,1781133039000,-900.18513194,0.00017168,2]
[424761857,1781133039000,-3011.84407709,0.00017191,2]
[424761854,1781133039000,-936.97084224,0.00017168,2]
[424761850,1781133039000,-904.82612949,0.00017168,2]
[424761859,1781133039000,-944.46568736,0.00017226,2]
[424761855,1781133039000,-1057.21715734,0.00017168,2]
[424761861,1781133039000,-929.74188553,0.00017226,2]
[424761863,1781133039000,-231.129,0.00017296,2]
[424761865,1781133039000,-150.307,0.00017296,2]
[424761867,1781133039000,-159.76199351,0.00017697,2]
[424761880,1781133039000,-1101.87663526,0.00017938,2]
[424761882,1781133039000,-1687.68732376,0.00018,2]
[424761884,1781133039000,-1340.04,0.0001863,2]
[424761868,1781133039000,-177.11692,0.00017811,2]
[424761870,1781133039000,-1258.95136876,0.00017878,2]
[424761872,1781133039000,-1101.25784342,0.00017878,2]
[424761874,1781133039000,-1099.44773192,0.00017878,2]
[424761876,1781133039000,-1727.6041513,0.00017878,2]
[424761878,1781133039000,-1050.21598726,0.00017878,2]
[424761887,1781133039000,-159.76199351,0.00018798,2]
[424761886,1781133039000,-909.741,0.00018782,2]
[424761889,1781133039000,-1560.965,0.000189,2]
[424761785,1781133039000,-629.64379158,0.00016435,2]
[424761893,1781133039000,-1560.96,0.000189,2]
[424761846,1781133039000,-1198.86916019,0.00017168,2]
[424761844,1781133039000,-1480.80355825,0.00017168,2]
[424761891,1781133039000,-1560.965,0.000189,2]
[424761840,1781133039000,-1079.10117322,0.00017168,2]
[424761843,1781133039000,-942.38377022,0.00017168,2]
[424761790,1781133039000,-169.64702593,0.00016435,2]
[424761792,1781133039000,-360.5183271,0.00016435,2]
[424761786,1781133039000,-619.82792368,0.00016435,2]
[424761796,1781133039000,-395.35422244,0.00016435,2]
[424761798,1781133039000,-170.31189081,0.00016435,2]
[424761800,1781133039000,-429.15855145,0.00016438,2]
[424761813,1781133039000,-1234.00296521,0.00016695,2]
[424761815,1781133039000,-999.05763349,0.00016695,2]
[424761802,1781133039000,-5544.33625464,0.00016492,2]
[424761817,1781133039000,-780.48086446,0.00016695,2]
[424761804,1781133039000,-159.76199353,0.00016595,2]
[424761788,1781133039000,-166.71891545,0.00016435,2]
[424761810,1781133039000,-785.31980851,0.00016695,2]
[424761806,1781133039000,-899.25097768,0.00016695,2]
[424761833,1781133039000,-774.7849046,0.00016752,2]
[424761831,1781133039000,-787.05473947,0.00016752,2]
[424761839,1781133039000,-3998.29186079,0.00017035,2]
[424761837,1781133039000,-16615.49764601,0.00017,2]
[424761841,1781133039000,-943.93529436,0.00017168,2]
[424761827,1781133039000,-780.8090352,0.00016695,2]
[424761824,1781133039000,-750.15427662,0.00016695,2]
[424761822,1781133039000,-754.02177458,0.00016695,2]
[424761812,1781133039000,-1032.43416768,0.00016695,2]
[424761808,1781133039000,-786.6127453,0.00016695,2]
[424761829,1781133039000,-881.01429778,0.00016695,2]
[424761974,1781133040000,-151.0,0.0002,2]
[424761965,1781133040000,-393.345513,0.0002,2]
[424761966,1781133040000,-151.0,0.0002,2]
[424761956,1781133040000,-393.345513,0.0002,2]
[424761960,1781133040000,-393.345513,0.0002,2]
[424761962,1781133040000,-151.0,0.0002,2]
[424761958,1781133040000,-393.345513,0.0002,2]
[424761970,1781133040000,-151.0,0.0002,2]
[424761972,1781133040000,-151.0,0.0002,2]
[424761954,1781133040000,-498.406649,0.0002,2]
[424761991,1781133040000,-1340.04,0.00020548,2]
[424761978,1781133040000,-1225.83172305,0.000202,2]
[424761981,1781133040000,-1340.04,0.00020274,2]
[424761985,1781133040000,-1225.83172305,0.000204,2]
[424761983,1781133040000,-1227.46077122,0.000204,2]
[424761995,1781133040000,-1225.83172305,0.000206,2]
[424761989,1781133040000,-1630.79138738,0.00020541,2]
[424761987,1781133040000,-2221.20533738,0.00020541,2]
[424761993,1781133040000,-1227.46077122,0.000206,2]
[424761998,1781133040000,-1225.83172305,0.000208,2]
[424762000,1781133040000,-1340.04,0.00020822,2]
[424761968,1781133040000,-151.0,0.0002,2]
[424761976,1781133040000,-1227.46077122,0.000202,2]
[424761952,1781133040000,-498.406649,0.0002,2]
[424761914,1781133040000,-1340.04,0.00019178,2]
[424761949,1781133040000,-498.406649,0.0002,2]
[424761997,1781133040000,-1406.3060774,0.0002061,2]
[424761899,1781133040000,-1258.58039248,0.00018943,2]
[424761901,1781133040000,-1974.40474434,0.00018943,2]
[424761897,1781133040000,-1340.04,0.00018904,2]
[424761895,1781133040000,-1148.8994,0.000189,2]
[424761905,1781133040000,-24814.98887243,0.00019,2]
[424761910,1781133040000,-579.49,0.00019,2]
[424761912,1781133040000,-300.0,0.00019178,2]
[424761923,1781133040000,-160.0,0.00019762,2]
[424761922,1781133040000,-1340.04,0.00019726,2]
[424761925,1781133040000,-1227.46077122,0.000198,2]
[424761916,1781133040000,-1340.04,0.00019452,2]
[424761920,1781133040000,-300.0,0.00019589,3]
[424761918,1781133040000,-177.11692,0.00019507,2]
[424761929,1781133040000,-159.76199351,0.000199,2]
[424761927,1781133040000,-1225.83172305,0.000198,2]
[424761931,1781133040000,-1227.46077122,0.0002,2]
[424761945,1781133040000,-910707.76985653,0.0002,2]
[424761935,1781133040000,-1340.04,0.0002,2]
[424761936,1781133040000,-20129.88897641,0.0002,2]
[424761933,1781133040000,-1225.83172305,0.0002,2]
[424761938,1781133040000,-18533.52903823,0.0002,2]
[424761947,1781133040000,-151.0,0.0002,2]
[424761951,1781133040000,-498.406649,0.0002,2]
[424762002,1781133040000,-1225.83172305,0.00021,2]
[424761903,1781133040000,-1449.59234433,0.00018943,2]
[424762011,1781133040000,-1225.83172305,0.000212,2]
[424762060,1781133040000,-175.138676,0.00021918,2]
[424762069,1781133040000,-500.0,0.00022191,2]
[424762058,1781133040000,-195.926135,0.00021918,2]
[424762071,1781133040000,-415.30148322,0.00022191,2]
[424762062,1781133040000,-151.0,0.00021918,2]
[424762064,1781133040000,-151.0,0.00021918,2]
[424762074,1781133040000,-500.0,0.00022465,2]
[424762076,1781133040000,-1340.16,0.00022466,2]
[424762078,1781133040000,-326.098103,0.00022468,2]
[424762095,1781133040000,-472.091,0.00023205,2]
[424762093,1781133040000,-2208.0,0.00023205,2]
[424762091,1781133040000,-3666.0,0.00023205,2]
[424762097,1781133040000,-569.886,0.00023205,2]
[424762099,1781133040000,-188.08,0.00023205,2]
[424762082,1781133040000,-676.75,0.000228,2]
[424762080,1781133040000,-500.0,0.00022739,2]
[424762086,1781133040000,-1811.99043042,0.00022937,2]
[424762090,1781133040000,-1838.0,0.00023205,2]
[424762088,1781133040000,-500.0,0.00023013,2]
[424762084,1781133040000,-2468.00593042,0.00022937,2]
[424762004,1781133040000,-150.0,0.00021,2]
[424762101,1781133040000,-404.33677434,0.00023287,2]
[424762105,1781133040000,-119829.9649914,0.00025444,2]
[424762072,1781133040000,-1340.04,0.00022192,2]